[Event "5th Sharjah Masters 2022"]
[Site "Sharjah"]
[Date "2022.05.23"]
[Round "3.24"]
[White "Baenziger, Fabian"]
[Black "Yakubboev, Nodirbek"]
[Result "0-1"]
[ECO "D76"]
[WhiteElo "2430"]
[BlackElo "2630"]
[Annotator "TA"]
[PlyCount "136"]
[EventDate "2022.05.21"]
[EventType "swiss"]
[EventCountry "UAE"]
[SourceTitle "playchess.com"]
[Source "ChessBase"]
[SourceQuality "1"]
[TimeControl "5400+30"]

{[%evp 22,136,-10,-6,39,7,0,2,16,0,0,0,14,2,35,0,0,0,-7,-29,0,0,20,13,14,8,68,41,54,39,44,46,52,16,25,31,33,0,33,1,27,8,8,13,12,14,39,21,21,0,37,0,6,-8,-6,-43,-36,-45,-40,-46,-41,-58,-40,-35,-23,-137,-135,-130,-110,-112,-110,-118,-110,-215,-214,-210,-214,-238,-218,-213,-213,-216,-215,-212,-208,-254,-212,-212,-212,-208,-185,-246,-177,-247,-233,-435,-281,-688,-680,-670,-606,-590,-576,-551,-507,-507,-500,-474,-449,-699,-551,-277,-5695,-29985,-29986,-29992,-29993]} 1. d4 {[%emt 0:00:04]} Nf6 {[%emt 0:00:02]} 2. c4 {[%emt 0:00:11]} g6 {[%emt 0:00:02]} 3. Nf3 {[%emt 0:00:28]} Bg7 {[%emt 0:00:03]} 4. g3 {[%emt 0:00:09]} O-O {[%emt 0:08:34]} 5. Bg2 {[%emt 0:00:16]} d5 {[%emt 0:07:48]} 6. cxd5 {[%emt 0:02:16]} Nxd5 {[%emt 0:00:23]} 7. O-O {[%emt 0:00:08]} Nb6 {[%emt 0:00:47]} 8. Nc3 {[%emt 0:00:14]} Nc6 {[%emt 0:00:31][%cal Bb8c6,Bc6a5,Ba5c4][%mdl 32]} 9. d5 {[%emt 0:09:35]} Na5 {[%emt 0:00:27]} 10. e4 {[%emt 0:00:53]} c6 {[%emt 0:00:39]} 11. Nd4 {[%emt 0:04:01][%cal Bf3d4,Bd4c2,Bc2e3,Be3c4][%mdl 32] 11.h3 is the modern continuation.} cxd5 {[%emt 0:09:34]} 12. exd5 {[%emt 0:00:37]} e5 {[%emt 0:00:21] D76: Fianchetto Grünfeld: Main Line with 7...Nb6.} 13. Nc2 {[%emt 0:14:48]} (13. Nb3 $5 {[%cal Rb3a5]} Nac4 14. Nc5 $11) 13... Nac4 {[%emt 0:11:29]} 14. b3 {[%emt 0:05:44]} Nd6 {[%emt 0:02:25][%cal Oe5e4] The position is equal.} 15. Ba3 {[%emt 0:00:14][%cal Bc1a3,Ba3b4,Bb4c5][%mdl 32]} f5 {[%emt 0:00:56]} 16. Rc1 {[%emt 0:09:33] [#]} Qf6 $146 {[%emt 0:11:01]} ({Predecessor:} 16... a6 17. Ne3 Re8 18. Qe2 Bf8 19. Rfd1 Bd7 20. Nc4 Nbxc4 21. bxc4 Qa5 22. Nb1 b6 {0-1 (46) Modr,B (2365)-Seeger,R Dortmund 1988}) 17. Ne3 {[%emt 0:04:24][%cal Oe3c4]} Rd8 {[%emt 0:05:00]} 18. Qe2 {[%emt 0:04:38]} Bd7 {[%emt 0:08:36]} 19. Bb4 {[%emt 0:14:34]} e4 {[%emt 0:05:48]} 20. a4 {[%emt 0:02:16]} Nbc8 {[%emt 0:05:13]} (20... a5 $5 {[%cal Ra5b4]} 21. Ba3 Rac8 $11) 21. Nc4 {[%emt 0:12:40]} Be8 {[%emt 0:00:48]} 22. Rfd1 {[%emt 0:01:22]} Bf8 {[%emt 0:02:21]} 23. Ne3 {[%emt 0:02:50]} Rd7 {[%emt 0:03:01]} (23... Nb6 $11) 24. Bc5 {[%emt 0:03:00]} Qd8 {[%emt 0:00:17]} 25. Bd4 {[%emt 0:04:35]} Bg7 {[%emt 0:00:07]} 26. Qd2 {[%emt 0:00:19]} Bf7 {[%emt 0:03:13]} 27. Ne2 {[%emt 0:00:53]} Ne8 {[%emt 0:00:47]} 28. Bxg7 {[%emt 0:01:33]} Nxg7 {[%emt 0:00:58]} 29. Qd4 {[%emt 0:00:48]} Nd6 {[%emt 0:02:11]} (29... Ne7 $5 {[%cal Re7d5]}) 30. h4 {[%emt 0:00:53]} Nge8 {[%emt 0:00:55]} (30... Nh5 {with more complications.} 31. g4 f4 32. gxh5 fxe3 33. Qxe3 Qxh4 34. hxg6 Bxg6 35. Qh3 Qxh3 36. Bxh3 Bf5) 31. Nc4 {[%emt 0:01:22]} Qf6 {[%emt 0:00:42]} 32. Qe3 {[%emt 0:00:23]} b6 {[%emt 0:02:54]} 33. Nf4 {[%emt 0:00:36]} Rad8 {[%emt 0:00:57]} 34. a5 {[%emt 0:00:32]} Nc8 {[%emt 0:00:29]} 35. axb6 {[%emt 0:00:26]} axb6 {[%emt 0:00:14]} 36. Bf1 {[%emt 0:00:40]} (36. f3 $5 {[%cal Rf3e4]} b5 37. fxe4 $1 fxe4 38. Nd2 $14 (38. Qxe4 bxc4 39. bxc4 Ncd6 $17)) 36... Kg7 {[%emt 0:01:34]} 37. Na3 {[%emt 0:00:30] Threatens to win with Bb5.} Ne7 {[%emt 0:00:57][%cal Re7d5]} 38. Bb5 {[%emt 0:00:33]} Nxd5 {[%emt 0:00:35]} 39. Nxd5 {[%emt 0:00:15]} Rxd5 {[%emt 0:00:02]} 40. Rxd5 {[%emt 0:00:08]} Rxd5 {[%emt 0:00:08]} 41. Bc4 {[%emt 0:00:56]} Rd7 {[%emt 0:03:11]} 42. Bxf7 {[%emt 0:00:24]} Kxf7 {[%emt 0:00:04]} 43. Nb5 {[%emt 0:00:11] Black keeps a firm grip on the game.} (43. Qh6 $1 $11) 43... Qb2 {[%emt 0:01:01]} 44. Rf1 {[%emt 0:00:32]} Kg7 {[%emt 0:02:00] Black is more active.} 45. Qxb6 {[%emt 0:01:03]} Qxb3 {[%emt 0:00:06][%cal Oe8c7] aiming for ...Nc7!} 46. Qc6 {[%emt 0:00:26] Against Nc7} Qd5 {[%emt 0:01:15]} 47. Qc8 {[%emt 0:00:27]} (47. Qxd5 $17 Rxd5 48. Nc3) 47... Nf6 $19 {[%emt 0:01:00]} ({Weaker is} 47... Qxb5 48. Qxe8 Kh6 49. Qc8 $17) 48. Nc3 {[%emt 0:00:16] [#]} Qe5 {[%emt 0:00:39]} 49. Nd1 {[%emt 0:00:51]} f4 {[%emt 0:00:43] Against Ne3} 50. gxf4 {[%emt 0:00:22]} Qxf4 {[%emt 0:00:08]} 51. Ne3 {[%emt 0:00:02] Against Qg4+} Qxh4 {[%emt 0:00:29]} 52. Rb1 {[%emt 0:00:03]} Rf7 {[%emt 0:01:29][%cal Of6d5]} 53. Rb8 {[%emt 0:00:33]} Kh6 {[%emt 0:01:17]} 54. Rb5 {[%emt 0:00:33] Inhibits Nd5.} Nd7 {[%emt 0:00:34]} 55. Qc2 {[%emt 0:00:25]} Kg7 {[%emt 0:00:22]} 56. Qd2 {[%emt 0:00:57]} (56. Qb2+ {keeps fighting.} Kg8 57. Ra5) 56... Qf4 {[%emt 0:00:43]} 57. Kf1 {[%emt 0:01:05]} (57. Qd4+ {was worth a try.} Kg8 58. Nc4) 57... h5 {[%emt 0:00:29] Hoping for ...Ne5.} 58. Rd5 {[%emt 0:00:19]} (58. Kg1) 58... Ne5 {[%emt 0:00:34] ...Nd3 is the strong threat.} 59. Qb2 $2 {[%emt 0:00:26]} (59. Nd1 Nd3 60. Qxf4 Rxf4 61. Kg2) 59... Qxe3 {[%emt 0:00:15]} ({Worse is} 59... Re7 60. Nc4 $11) 60. Rxe5 {[%emt 0:00:44][%mdl 4096] Endgame KQR-KQR} Qh3+ {[%emt 0:00:12]} 61. Kg1 {[%emt 0:00:24]} Qg4+ {[%emt 0:00:14]} 62. Kf1 {[%emt 0:00:11] Black must now prevent Rxe4+.} Qd1+ {[%emt 0:00:47]} 63. Kg2 {[%emt 0:00:03] White wants to mate with Rd5+.} Qf3+ {[%emt 0:00:28]} 64. Kg1 {[%emt 0:00:01] Strongly threatening Rf5+.} Kh6 {[%emt 0:00:47]} ({Wrong is} 64... Qg4+ $2 65. Kf1 Qd1+ 66. Kg2 $19) 65. Re8 {[%emt 0:00:27]} (65. Qd2+ $142 Rf4 66. Rc5) 65... Rf4 {[%emt 0:00:45]} 66. Rh8+ {[%emt 0:00:26]} Kg5 {[%emt 0:00:00] ( -> ...Rg4+)} 67. Qe5+ {[%emt 0:00:04]} Kh4 {[%emt 0:00:47]} 68. Qe7+ {[%emt 0:00:06]} g5 {[%emt 0:00:17] Weighted Error Value: White=0.33/Black=0.14 (very precise)} 0-1

[Event "5th Sharjah Masters 2022"]
[Site "Sharjah"]
[Date "2022.05.23"]
[Round "3.25"]
[White "Ganguly, Surya Shekhar"]
[Black "Dimakiling, Oliver"]
[Result "1-0"]
[ECO "C54"]
[WhiteElo "2616"]
[BlackElo "2420"]
[Annotator "TA"]
[PlyCount "73"]
[EventDate "2022.05.21"]
[EventType "swiss"]
[EventCountry "UAE"]
[SourceTitle "playchess.com"]
[Source "ChessBase"]
[SourceQuality "1"]
[TimeControl "5400+30"]

{[%evp 13,73,12,10,12,20,13,30,14,38,16,25,12,43,54,41,17,37,47,40,12,217,200,222,214,244,256,256,254,256,253,252,245,243,231,219,213,251,186,162,185,250,260,255,300,379,412,409,398,349,224,503,495,1008,961,770,395,1197,1113,1453,1382,1143,1068]} 1. e4 {[%emt 0:00:08]} e5 {[%emt 0:00:13]} 2. Nf3 {[%emt 0:00:08]} Nc6 {[%emt 0:00:10]} 3. Bc4 {[%emt 0:00:20]} Bc5 {[%emt 0:00:49]} 4. O-O {[%emt 0:00:54]} Nf6 {[%emt 0:00:27]} 5. d3 {[%emt 0:00:05]} O-O {[%emt 0:00:38]} 6. c3 {[%emt 0:00:17]} d6 {[%emt 0:01:42]} 7. h3 {[%emt 0:05:27]} Bb6 {[%emt 0:02:13]} 8. Re1 {[%emt 0:04:48] C54: Giuoco Piano: 4 c3 Nf6, main lines with 5 d4 and 5 d3.} Be6 {[%emt 0:01:43]} 9. Nbd2 {[%emt 0:01:13]} Re8 {[%emt 0:02:55]} 10. a4 {[%emt 0:06:33][%cal Ba2a4,Ba4a5][%mdl 32] [#] White has an edge.} a6 $146 {[%emt 0:04:04]} ({Predecessor:} 10... h6 11. b4 a6 12. Bxe6 Rxe6 13. Qc2 Qd7 14. Nc4 d5 15. exd5 Qxd5 16. Be3 e4 17. Nxb6 cxb6 18. dxe4 Qxe4 19. Qb3 Qd5 {1-0 (51) Wolf,W (2129)-Nitschke,N (1767) GER email 2013}) 11. b4 {[%emt 0:10:12]} d5 {[%emt 0:02:31]} 12. exd5 {[%emt 0:00:17]} Nxd5 {[%emt 0:00:09]} 13. Ne4 {[%emt 0:01:17]} f6 {[%emt 0:04:06] Against Nfg5} 14. Qb3 {[%emt 0:10:38]} Kh8 {[%emt 0:00:40]} 15. a5 {[%emt 0:00:55]} Ba7 {[%emt 0:00:29]} 16. d4 {[%emt 0:14:28]} exd4 $2 {[%emt 0:06:57] [#] Loses the game.} (16... Bg8 $1 $11 {and Black has nothing to worry.}) 17. Nc5 $1 $18 {[%emt 0:00:29]} Bxc5 {[%emt 0:02:45]} 18. bxc5 {[%emt 0:00:09]} dxc3 {[%emt 0:19:17][%cal Oc3c2] [#]} 19. Rxe6 $1 {[%emt 0:01:06][%mdl 576] Remove Defender} Rxe6 {[%emt 0:00:07]} 20. Bxd5 {[%emt 0:00:08]} Re8 {[%emt 0:00:31][%cal Oc6a5]} 21. Bxc6 {[%emt 0:14:00]} bxc6 {[%emt 0:03:00]} 22. Qxc3 {[%emt 0:00:11]} Rb8 {[%emt 0:03:22]} 23. Bf4 {[%emt 0:02:38]} Re4 {[%emt 0:01:05]} 24. Bg3 {[%emt 0:00:27]} Rb5 {[%emt 0:03:03]} 25. Kh2 {[%emt 0:03:19]} h6 {[%emt 0:03:15]} 26. Rc1 {[%emt 0:03:27]} Qd7 {[%emt 0:12:46]} (26... Rbb4 $142 27. Nd2 Red4) 27. Qc2 {[%emt 0:02:00]} Qe7 {[%emt 0:02:10]} 28. Nh4 {[%emt 0:03:31] Threatens to win with Ng6+.} Qe8 {[%emt 0:03:26] Inhibits Ng6+.} 29. Rd1 {[%emt 0:01:11][%cal Og3c7,Bc1d1,Bd1d6,Bd6c6][%mdl 32]} Rbb4 {[%emt 0:04:56] [#]} 30. Bxc7 $1 {[%emt 0:03:06] Black must now prevent Rd8.} Qf7 {[%emt 0:01:45]} (30... Rxh4 $2 31. Rd8 Qxd8 32. Bxd8 $18) (30... Rbc4 31. Qb3) 31. Bg3 {[%emt 0:02:41]} f5 $2 {[%emt 0:00:25]} (31... Qc4 {is a better defense.} 32. Ng6+ (32. Rd8+ Kh7 $16) 32... Kh7 33. Qxc4 Rbxc4) 32. Rd6 {[%emt 0:03:43]} Rxh4 {[%emt 0:00:57]} (32... Kh7 $142 33. Ng6 (33. Rxc6 f4 $11) 33... Qc4 34. Qxc4 Rbxc4 35. Rxc6 Rc2) 33. Bxh4 {[%emt 0:00:04]} Rxh4 {[%emt 0:00:04]} 34. Rxc6 {[%emt 0:01:08]} Qe8 $2 {[%emt 0:02:47]} (34... Rd4 35. Rxa6 Rc4) 35. Rxa6 {[%emt 0:01:20] Hoping for c6. White is clearly winning.} Re4 {[%emt 0:04:35]} 36. Qc3 {[%emt 0:00:36] White threatens Rxh6+ and mate.} Qb8+ {[%emt 0:02:55]} 37. Rd6 {[%emt 0:00:49] Weighted Error Value: White=0.24 (precise) /Black=0.37} 1-0

[Event "5th Sharjah Masters 2022"]
[Site "Sharjah"]
[Date "2022.05.23"]
[Round "3.26"]
[White "Haznedaroglu, Kivanc"]
[Black "Can, Emre"]
[Result "1-0"]
[ECO "B95"]
[WhiteElo "2425"]
[BlackElo "2599"]
[Annotator "TA"]
[PlyCount "81"]
[EventDate "2022.05.21"]
[EventType "swiss"]
[EventCountry "UAE"]
[SourceTitle "playchess.com"]
[Source "ChessBase"]
[SourceQuality "1"]
[TimeControl "5400+30"]

{[%evp 14,81,27,9,12,15,10,0,0,0,22,16,17,0,0,10,4,0,7,0,0,0,0,0,0,0,0,0,0,0,31,0,0,0,42,-110,0,-36,-20,-31,-29,-37,-35,-58,0,-192,-82,-81,-81,-81,-71,-59,-65,-413,-424,-429,-405,-426,-401,-420,-393,-410,-408,-1642,-694,-675,-630,-1256,29996,29997]} 1. e4 {[%emt 0:00:02]} c5 {[%emt 0:00:23]} 2. Nf3 {[%emt 0:00:06]} d6 {[%emt 0:00:29]} 3. d4 {[%emt 0:00:08]} cxd4 {[%emt 0:00:15]} 4. Nxd4 {[%emt 0:00:06]} Nf6 {[%emt 0:00:33]} 5. Nc3 {[%emt 0:00:06]} a6 {[%emt 0:00:49]} 6. Bg5 {[%emt 0:00:11]} e6 {[%emt 0:01:05]} 7. Qf3 {[%emt 0:00:07]} h6 {[%emt 0:07:12]} 8. Be3 {[%emt 0:08:07]} Nc6 {[%emt 0:04:55] [#] B95: Sicilian Najdorf: 6 Bg5 e6, unusual White 7th moves.} 9. h3 $146 {[%emt 0:09:23]} ({Predecessor:} 9. Nxc6 bxc6 10. Be2 Rb8 11. b3 d5 12. Bf4 Rb4 13. a3 Nxe4 14. O-O Nxc3 15. axb4 Nxe2+ 16. Qxe2 Bxb4 {1-0 (54) Pessoa,F (2519)-Dijon,J (2437) ICCF email 2012}) 9... Bd7 {[%emt 0:08:00]} 10. Bd3 {[%emt 0:08:00]} Rc8 {[%emt 0:04:34] The position is equal.} 11. O-O {[%emt 0:01:58]} Ne5 {[%emt 0:03:04]} 12. Qe2 {[%emt 0:00:59]} b5 {[%emt 0:06:00]} 13. f4 {[%emt 0:05:25]} Nxd3 {[%emt 0:00:35]} 14. cxd3 {[%emt 0:00:02]} b4 {[%emt 0:03:33]} 15. Nb1 {[%emt 0:02:17]} Be7 {[%emt 0:01:24]} 16. a3 {[%emt 0:01:26]} a5 {[%emt 0:05:35]} 17. axb4 {[%emt 0:00:09]} axb4 {[%emt 0:00:07]} 18. Nd2 {[%emt 0:00:10]} O-O {[%emt 0:01:56]} 19. N2f3 {[%emt 0:05:59]} Qc7 {[%emt 0:10:14]} 20. g4 {[%emt 0:04:39]} Qb8 {[%emt 0:03:03]} 21. Rf2 {[%emt 0:01:09]} Rfe8 {[%emt 0:07:35]} 22. Rg2 {[%emt 0:00:51]} e5 {[%emt 0:05:37]} 23. Nf5 {[%emt 0:04:27]} exf4 {[%emt 0:03:44]} 24. Bd4 {[%emt 0:05:04]} (24. Bxf4 $14 {keeps the upper hand.} Bf8 25. Qd1) 24... Bd8 {[%emt 0:02:18]} ({Black should try} 24... Bxf5 $17 25. gxf5 b3) 25. Nxg7 {[%emt 0:25:24]} Kxg7 {[%emt 0:02:23][%cal Bg8g7,Bg7f8,Bf8e8][%mdl 32]} 26. g5 {[%emt 0:00:02]} hxg5 {[%emt 0:00:34]} (26... Bxh3 $2 27. gxf6+ Kf8 28. Ng5 $1 $18 {[%mdl 512]}) 27. Rxg5+ {[%emt 0:00:05]} Kf8 {[%emt 0:00:48] Strongly threatening ...d5.} 28. Qf2 $1 {[%emt 0:00:02] [#]} Re6 {[%emt 0:03:48]} ({Of course not} 28... Bxh3 29. Qh4 Be6 30. Qh6+ Ke7 31. Bxf6+ (31. Qxf6+ Kd7 $15) 31... Kd7 32. d4 $11) (28... Rc5 $1 $15 29. Bxc5 dxc5 30. Qxc5+ Be7) 29. Kh1 $2 {[%emt 0:04:23]} (29. Qh4 $11 {and White has nothing to worry.}) 29... Bc6 {[%emt 0:09:13]} (29... Bb5 $1 $19 {[%cal Rb5d3] and Black stays clearly on top.} 30. Qd2 Qb7) 30. Qh4 $17 {[%emt 0:00:15]} Ke8 {[%emt 0:00:18][%cal Of6e4] And now ...Nxe4! would win.} 31. Qxf4 {[%emt 0:03:31] [#]} Be7 $1 {[%emt 0:01:27]} 32. Rg7 {[%emt 0:00:29]} Qb5 {[%emt 0:01:01]} 33. Ng5 $2 {[%emt 0:04:56][%mdl 8192]} (33. Bxf6 $15 Rxf6 34. Rg8+ Kd7 35. Qg4+ (35. Ra7+ $2 Rc7 $19) 35... Re6 36. Rxc8 Kxc8 37. Nd4 Qxd3 38. Nxc6 Qxe4+ 39. Qxe4 Rxe4 40. Ra7) 33... Qxd3 $19 {[%emt 0:00:44]} 34. Nxe6 {[%emt 0:05:15][%cal Oh1g1] Black must now prevent Kg1!} Qxh3+ {[%emt 0:01:46]} 35. Kg1 {[%emt 0:00:29]} Qxe6 {[%emt 0:00:27]} 36. Ra7 {[%emt 0:00:56] Threatening mate with Bxf6.} Nd7 {[%emt 0:01:02]} 37. Rg8+ {[%emt 0:01:12]} Bf8 {[%emt 0:01:01]} 38. Bg7 {[%emt 0:00:10]} (38. Qf5 $142) 38... Bxe4 {[%emt 0:00:57]} (38... Qg6+ $142 39. Kf2 {[#]} Bb7 $1 {[%mdl 512]}) 39. Bxf8 {[%emt 0:01:23]} Nxf8 {[%emt 0:00:06]} 40. Qg5 {[%emt 0:00:25]} Bg6 $4 {[%emt 0:01:08][%mdl 8192]} (40... Bd5 $19 41. Ra1 Qe4) 41. Qb5+ {[%emt 0:00:25] White used his chance.  Weighted Error Value: White=0.69/Black=0.54} 1-0

[Event "5th Sharjah Masters 2022"]
[Site "Sharjah"]
[Date "2022.05.23"]
[Round "3.27"]
[White "Yuffa, Daniil"]
[Black "Buksa, Nataliya"]
[Result "1-0"]
[ECO "D78"]
[WhiteElo "2597"]
[BlackElo "2406"]
[Annotator "TA"]
[PlyCount "125"]
[EventDate "2022.05.21"]
[EventType "swiss"]
[EventCountry "UAE"]
[SourceTitle "playchess.com"]
[Source "ChessBase"]
[SourceQuality "1"]
[TimeControl "5400+30"]

{[%evp 11,125,9,15,-12,0,-47,25,-22,43,26,29,17,69,84,80,42,93,89,104,108,102,113,102,100,147,157,136,139,204,212,210,202,199,129,140,136,265,262,243,268,268,249,270,281,355,388,395,394,395,395,389,204,172,168,174,130,127,119,103,110,98,106,90,102,99,101,102,101,186,187,187,191,268,101,102,70,95,92,516,520,520,512,489,488,457,351,574,472,949,5582,12827,12847,1761,1682,1435,1390,29956,29958,29958,29962,29957,29959,29962,29968,29968,29964,29983,29984,29986,29987,29987,29987,29987,29983,29983,29984]} 1. d4 {[%emt 0:00:08]} Nf6 {[%emt 0:00:05]} 2. c4 {[%emt 0:00:14]} g6 {[%emt 0:00:04]} 3. g3 {[%emt 0:01:14]} c6 {[%emt 0:00:28]} 4. Bg2 {[%emt 0:00:12]} d5 {[%emt 0:00:04]} 5. Nf3 {[%emt 0:00:13]} Bg7 {[%emt 0:00:05]} 6. O-O {[%emt 0:00:07]} O-O {[%emt 0:00:11]} 7. a4 {[%emt 0:00:08] D78: Fianchetto Grünfeld: 6 0-0 c6.} a5 {[%emt 0:05:06]} 8. Nc3 {[%emt 0:00:45]} (8. cxd5 $11 {feels stronger.} Nxd5 9. Nc3) 8... Ne4 {[%emt 0:01:48]} (8... dxc4 $15 9. e4 Na6) 9. Qb3 {[%emt 0:05:56]} (9. Bf4 $142) 9... Na6 {[%emt 0:05:45]} (9... dxc4 $11 10. Qxc4 Be6) 10. cxd5 $14 {[%emt 0:00:45]} cxd5 {[%emt 0:02:51]} 11. Ne5 {[%emt 0:04:51] [#]} (11. Nxd5 $2 Be6 12. Nxe7+ Qxe7 $19) 11... e6 $146 {[%emt 0:11:31]} (11... Be6 $11) ({Predecessor:} 11... Be6 12. Nxe4 dxe4 13. Qxb7 Nb4 14. Bxe4 Rb8 15. Qa7 Bd5 16. Bxd5 Qxd5 17. Qxe7 Nc2 {0-1 (51) Haessel,D (2184)-Humphreys,M (2091) Guelph 2011}) 12. Bxe4 {[%emt 0:05:58]} dxe4 {[%emt 0:00:05]} 13. Rd1 {[%emt 0:00:18]} (13. Nxe4 $2 Qxd4 14. Qf3 Qxe5 $19) 13... f5 {[%emt 0:12:15]} (13... b6 $14) 14. h4 $36 {[%emt 0:05:38][%mdl 2048] White is really pushing. 0x0.001a28592881dp-1022s more active pieces. The black rooks are badly placed.} Nb4 {[%emt 0:01:54]} 15. Bg5 {[%emt 0:03:29]} Bf6 {[%emt 0:05:42]} 16. Bxf6 {[%emt 0:18:27]} Qxf6 {[%emt 0:00:09]} 17. Rac1 {[%emt 0:01:37]} Nc6 {[%emt 0:07:50]} ({Black should play} 17... Qe7) 18. Qb5 {[%emt 0:00:21]} Ra6 {[%emt 0:03:48]} 19. e3 {[%emt 0:00:35]} Nb4 {[%emt 0:08:53] [#]} (19... h6 $16 20. Ne2 g5) 20. Ne2 $1 $18 {[%emt 0:01:51]} Qd8 {[%emt 0:02:59]} 21. Nf4 {[%emt 0:02:56]} Rd6 {[%emt 0:01:02]} 22. Qc4 {[%emt 0:12:19]} (22. Qc5 $18) 22... Bd7 $16 {[%emt 0:06:22]} 23. b3 {[%emt 0:00:15]} Na2 {[%emt 0:01:47]} (23... Nd5 $16 24. Nxd5 Rxd5) 24. Qc7 $18 {[%emt 0:04:34]} Bc6 {[%emt 0:00:44]} 25. Qxd8 {[%emt 0:00:54]} (25. Rxc6 bxc6 26. Qa7 c5 $14) 25... Rfxd8 {[%emt 0:01:12]} 26. Rc5 {[%emt 0:03:35]} Bd5 {[%emt 0:01:36]} 27. Rxa5 {[%emt 0:01:26]} Rb6 {[%emt 0:03:30]} 28. Rc5 {[%emt 0:04:25][%cal Ba5c5,Bc5c7,Bc7e7][%mdl 32] Prevents Rc8.} Rxb3 {[%emt 0:00:27]} 29. Rc7 {[%emt 0:00:26]} Rc3 {[%emt 0:05:23]} 30. Re7 {[%emt 0:02:04]} ({Weaker is} 30. Nxd5 exd5 31. Rxb7 Ra8 $18) 30... Rdc8 {[%emt 0:01:46]} 31. Rb1 {[%emt 0:02:24]} (31. h5 $142 R3c7 32. Nd7) 31... R3c7 {[%emt 0:04:25]} 32. Nd7 {[%emt 0:05:36] Pair of Knights!} Kh8 {[%emt 0:01:41]} 33. Nxd5 {[%emt 0:01:51]} exd5 {[%emt 0:00:07]} 34. Rb6 {[%emt 0:01:55]} Rd8 {[%emt 0:02:26]} 35. Rd6 {[%emt 0:00:19]} Nb4 {[%emt 0:00:42] [#]} 36. Nc5 $1 {[%emt 0:03:10][%cal Rd6d8]} Rxd6 {[%emt 0:02:26]} 37. Rxc7 $16 {[%emt 0:00:05][%mdl 4096] Endgame KRN-KRN} b6 {[%emt 0:00:17]} 38. Nd7 {[%emt 0:00:55]} Nd3 {[%emt 0:00:04]} 39. Kf1 {[%emt 0:01:21]} h6 {[%emt 0:01:22] [#]} (39... Kg8 $16) 40. Ke2 $1 $18 {[%emt 0:00:47]} g5 {[%emt 0:00:04]} 41. h5 {[%emt 0:00:49]} ({Don't play} 41. Ne5 $6 Nxe5 42. dxe5 Re6 $16) 41... f4 {[%emt 0:00:51]} (41... Nb2 $142 42. Ne5 Kg8) 42. gxf4 $2 {[%emt 0:00:58]} (42. Ne5 $18 {is the precise move to win. Strongly threatening Nf7+.} fxg3 43. fxg3 (43. Nf7+ Kg8 $11) 43... Nxe5 44. dxe5) 42... gxf4 $16 {[%emt 0:00:03]} 43. f3 {[%emt 0:01:00]} Kg8 {[%emt 0:00:56]} 44. Ne5 {[%emt 0:01:18]} fxe3 $2 {[%emt 0:01:12][%mdl 8192] Black cannot hold the game after this.} (44... Re6 $16 {is tougher.}) 45. Nxd3 $18 {[%emt 0:00:34]} exd3+ {[%emt 0:00:25]} 46. Kxd3 $16 {[%emt 0:00:08] KR-KR} Re6 {[%emt 0:00:29] Threatens to win with ...e2.} 47. Ke2 {[%emt 0:00:07]} Rf6 {[%emt 0:00:30]} 48. Kxe3 {[%emt 0:00:16] aiming for Rd7.} Rf5 $2 {[%emt 0:00:03]} (48... Kf8 {keeps fighting.} 49. Rb7 Ke8) 49. Rb7 {[%emt 0:00:19]} Rxh5 {[%emt 0:00:04]} (49... Rf6 $142 50. Rd7 Re6+ 51. Kf4 Rf6+ 52. Kg4 Rf8 53. Rxd5 Ra8) 50. Rxb6 $18 {[%emt 0:00:07] And now a5 would win.} Kg7 {[%emt 0:01:29]} 51. a5 {[%emt 0:01:38] Intending a6 and mate.} Rh2 {[%emt 0:00:22]} 52. a6 {[%emt 0:00:48]} Ra2 {[%emt 0:00:08]} 53. Kf4 {[%emt 0:00:18] White threatens Kf5 and mate.} Ra3 {[%emt 0:00:24]} 54. Kg4 {[%emt 0:01:10] White mates.} h5+ {[%emt 0:00:56]} 55. Kg5 {[%emt 0:00:34]} Kf7 {[%emt 0:00:05]} 56. f4 {[%emt 0:00:29][%cal Bf3f4,Bf4f5,Bf5f6][%mdl 32]} h4 {[%emt 0:00:25]} 57. Kxh4 {[%emt 0:00:22]} Ra4 {[%emt 0:00:03]} 58. Kg5 {[%emt 0:00:20]} Rxd4 {[%emt 0:00:03]} 59. f5 {[%emt 0:00:37]} Ke7 {[%emt 0:00:16]} 60. f6+ {[%emt 0:00:16]} Kd7 {[%emt 0:00:43]} 61. f7 {[%emt 0:00:44]} Ke7 {[%emt 0:00:08]} 62. Rb7+ {[%emt 0:00:16]} Kf8 {[%emt 0:00:09]} 63. a7 {[%emt 0:00:15] Weighted Error Value: White=0.14 (very precise) /Black=0.46} 1-0